fUSD/lending_fUSD_20240217
["ID","MTS","AMOUNT","RATE_DAILY","PERIOD"]
[314274748,1708139467237,-5123.64,0.0005041,60]
[314274749,1708139467247,-500.0,0.0005041,60]
[314274750,1708139467256,-500.0,0.0005041,60]
[314274751,1708139467267,-1145.97,0.0005041,60]
[314274752,1708139467275,-500.0,0.0005041,60]
[314274753,1708139467284,-12479.19,0.0005041,60]
[314274754,1708139467294,-500.0,0.0005041,60]
[314274755,1708139467304,-738.56,0.0005041,60]
[314274756,1708139467313,-500.0,0.0005041,60]
[314274757,1708139467323,-423.75109487,0.0005041,60]
[314274758,1708139467333,-500.0,0.0005041,60]
[314274759,1708139467343,-296.72365968,0.0005041,60]
[314274760,1708139467352,-548.51,0.0005041,60]
[314274761,1708139467362,-196.409247,0.00050414,30]
[314274762,1708139467371,-151.021788,0.00050448,52]
[314274763,1708139467381,-181.0,0.00050611,60]
[314274764,1708139467390,-367.7537532,0.00050665,23]
[314274765,1708139467399,-228.706666,0.00050684,30]
[314274766,1708139467409,-457.413333,0.00050684,30]
[314274767,1708139467418,-3821.546529,0.00050684,120]
[314274768,1708139467427,-1467.409503,0.00050684,30]
[314274769,1708139467436,-1477.917312,0.00050684,30]
[314274770,1708139467445,-4993.644876,0.00050684,120]
[314274771,1708139467454,-4026.307135,0.00050684,30]
[314274772,1708139467464,-170.433292,0.00050684,120]
[314274773,1708139467473,-1537.415636,0.00050684,30]
[314274774,1708139467483,-5175.301416,0.00050684,30]
[314274775,1708139467492,-2978.535654,0.00050684,30]
[314274776,1708139467501,-2187.077611,0.00050684,30]
[314274777,1708139467510,-595.707136,0.00050684,30]
[314274778,1708139467520,-3902.635805,0.00050684,30]
[314274779,1708139467529,-739.89,0.00050684,60]
[314274780,1708139467539,-500.0,0.00050684,60]
[314274781,1708139467548,-500.0,0.00050684,60]
[314274782,1708139467557,-1940.74026,0.00050684,120]
[314274783,1708139467567,-38896.952846,0.00050684,30]
[314274784,1708139467576,-1328.283323,0.00050684,30]
[314274785,1708139467585,-9754.743604,0.00050684,120]
[314274786,1708139467594,-47641.810668,0.00050684,30]
[314274787,1708139467604,-1591.050371,0.00050684,30]
[314274788,1708139467613,-500.0,0.00050684,60]
[314274789,1708139467622,-648.787679,0.00050684,30]
[314274790,1708139467632,-500.0,0.00050684,2]
[314274791,1708139467641,-500.0,0.00050684,60]
[314274792,1708139467650,-235.18876789,0.00050684,60]
[314274793,1708139467659,-500.0,0.00050684,60]
[314274794,1708139467668,-500.0,0.00050684,2]
[314274795,1708139467677,-293.83306253,0.00050684,60]
[314274796,1708139467686,-500.0,0.00050684,60]
[314274797,1708139467695,-615.82,0.00050684,60]
[314274798,1708139467705,-500.0,0.00050684,60]
[314274799,1708139467714,-500.0,0.00050684,60]
[314274800,1708139467723,-500.0,0.00050684,2]
[314274801,1708139467733,-500.0,0.00050684,60]
[314274802,1708139467742,-500.0,0.00050684,60]
[314274803,1708139467751,-521.38,0.00050684,2]
[314274804,1708139467760,-526.92,0.00050684,60]
[314274805,1708139467771,-500.0,0.00050684,60]
[314274806,1708139467780,-483.49063892,0.00050684,60]
[314274807,1708139467790,-500.0,0.00050684,60]
[314274808,1708139467799,-500.0,0.00050684,60]
[314274809,1708139467808,-500.0,0.00050684,60]
[314274810,1708139467817,-500.0,0.00050684,60]
[314274811,1708139467826,-195.92476062,0.00050684,60]
[314274812,1708139467835,-1162.21,0.00050684,60]
[314274813,1708139467844,-500.0,0.00050684,60]
[314274814,1708139467857,-536.04227791,0.00050684,60]
[314274815,1708139467866,-158.53932835,0.00050684,60]
[314274816,1708139467875,-500.0,0.00050684,60]
[314274817,1708139467885,-500.0,0.00050684,2]
[314274818,1708139467894,-150.0,0.00050684,60]
[314274819,1708139467903,-500.0,0.00050684,60]
[314274820,1708139467913,-500.0,0.00050684,60]
[314274821,1708139467921,-1393.94,0.00050684,60]
[314274822,1708139467932,-500.0,0.00050684,60]
[314274823,1708139467943,-162.29154161,0.00050684,60]
[314274824,1708139467952,-418.20678603,0.00050684,60]
[314274825,1708139467961,-500.0,0.00050684,60]
[314274826,1708139467971,-500.0,0.00050684,2]
[314274827,1708139467984,-500.0,0.00050684,60]
[314274828,1708139467993,-508.42636406,0.00050684,60]
[314274829,1708139468002,-500.0,0.00050684,60]
[314274830,1708139468012,-500.0,0.00050684,60]
[314274831,1708139468021,-1028.76,0.00050684,2]
[314274832,1708139468031,-342.53900499,0.00050684,60]
[314274833,1708139468040,-500.0,0.00050684,7]
[314274834,1708139468049,-500.0,0.00050684,60]
[314274835,1708139468058,-323.4775181,0.00050684,60]
[314274836,1708139468067,-500.0,0.00050684,60]
[314274837,1708139468076,-500.0,0.00050684,60]
[314274838,1708139468085,-500.0,0.00050684,60]
[314274839,1708139468094,-500.0,0.00050684,60]
[314274840,1708139468105,-154.00510433,0.00050684,60]
[314274841,1708139468114,-500.0,0.00050684,60]
[314274842,1708139468123,-657.81,0.00050684,60]
[314274843,1708139468133,-500.0,0.00050684,60]
[314274844,1708139468143,-331.9624509,0.00050684,60]
[314274845,1708139468153,-500.0,0.00050684,60]
[314274846,1708139468162,-500.0,0.00050684,60]
[314274847,1708139468172,-523.96,0.00050684,60]
[314274848,1708139468180,-500.0,0.00050684,60]
[314274849,1708139468189,-500.0,0.00050684,60]
[314274850,1708139468198,-500.0,0.00050684,60]
[314274851,1708139468207,-500.0,0.00050684,60]
[314274852,1708139468216,-471.99956181,0.00050684,60]
[314274853,1708139468225,-500.0,0.00050684,60]
[314274854,1708139468235,-500.0,0.00050684,60]
[314274855,1708139468244,-500.0,0.00050684,60]
[314274856,1708139468253,-500.0,0.00050684,60]
[314274857,1708139468262,-500.0,0.00050684,60]
[314274858,1708139468271,-500.0,0.00050684,60]
[314274859,1708139468280,-854.01,0.00050684,60]
[314274860,1708139468289,-500.0,0.00050684,60]
[314274861,1708139468298,-403.83975091,0.00050684,60]
[314274862,1708139468307,-500.0,0.00050684,60]
[314274863,1708139468316,-1495.02,0.00050684,60]
[314274864,1708139468325,-500.0,0.00050684,60]
[314274865,1708139468335,-500.0,0.00050684,60]
[314274866,1708139468344,-500.0,0.00050684,60]
[314274867,1708139468353,-1165.59,0.00050684,60]
[314274868,1708139468362,-350.79666112,0.00050684,60]
[314274869,1708139468372,-383.46404354,0.00050684,60]
[314274870,1708139468381,-549.43190406,0.00050684,60]
[314274871,1708139468390,-500.0,0.00050684,60]
[314274872,1708139468400,-500.0,0.00050684,60]
[314274873,1708139468409,-636.17,0.00050684,60]
[314274874,1708139468418,-437.37568518,0.00050684,60]
[314274875,1708139468427,-500.0,0.00050684,60]
[314274876,1708139468436,-893.76,0.00050684,60]
[314274877,1708139468446,-622.67,0.00050684,60]
[314274878,1708139468455,-3136.01,0.00050684,60]
[314274879,1708139468464,-500.0,0.00050684,60]
[314274880,1708139468474,-5024.34,0.00050684,60]
[314274881,1708139468483,-500.0,0.00050684,60]
[314274882,1708139468493,-500.0,0.00050684,60]
[314274883,1708139468501,-569.8,0.00050684,60]
[314274884,1708139468510,-502.24,0.00050684,60]
[314274885,1708139468519,-873.0,0.00050684,60]
[314274886,1708139468529,-500.0,0.00050684,60]
[314274887,1708139468538,-556.89,0.00050684,60]
[314274888,1708139468547,-500.0,0.00050684,60]
[314274889,1708139468557,-1593.36,0.00050684,60]
[314274890,1708139468566,-3220.88,0.00050684,60]
[314274891,1708139468574,-519.51,0.00050684,60]
[314274892,1708139468584,-500.0,0.00050684,60]
[314274893,1708139468672,-500.0,0.00050684,60]
[314274894,1708139468681,-500.0,0.00050684,60]
[314274895,1708139468690,-223.59263539,0.00050684,60]
[314274896,1708139468699,-500.0,0.00050684,60]
[314274897,1708139468708,-937.4,0.00050684,60]
[314274898,1708139468717,-577.85,0.00050684,60]
[314274899,1708139468726,-500.0,0.00050684,60]
[314274900,1708139468735,-1846.34,0.00050684,60]
[314274901,1708139468745,-500.0,0.00050684,60]
[314274902,1708139468755,-1210.8,0.00050684,14]
[314274903,1708139468766,-500.0,0.00050684,60]
[314274904,1708139468776,-233.59221271,0.00050684,60]
[314274905,1708139468786,-500.0,0.00050684,60]
[314274906,1708139468795,-1111.25,0.00050684,60]
[314274907,1708139468805,-783.66,0.00050684,60]
[314274908,1708139468814,-200.31660203,0.00050684,60]
[314274909,1708139468824,-567.1,0.00050684,60]
[314274910,1708139468833,-500.0,0.00050684,60]
[314274911,1708139468843,-523.09,0.00050684,60]
[314274912,1708139468852,-500.0,0.00050684,60]
[314274913,1708139468862,-1634.88,0.00050684,60]
[314274914,1708139468872,-500.0,0.00050684,60]
[314274915,1708139468881,-500.0,0.00050684,60]
[314274916,1708139468891,-500.0,0.00050684,60]
[314274917,1708139468900,-500.0,0.00050684,60]
[314274918,1708139468910,-401.75318419,0.00050684,60]
[314274919,1708139468919,-500.0,0.00050684,60]
[314274920,1708139468930,-500.0,0.00050684,60]
[314274921,1708139468941,-500.0,0.00050684,60]
[314274922,1708139468951,-500.0,0.00050684,60]
[314274923,1708139468961,-500.0,0.00050684,60]
[314274924,1708139468970,-500.0,0.00050684,60]
[314274925,1708139468980,-2129.66,0.00050684,60]
[314274926,1708139468990,-500.0,0.00050684,60]
[314274927,1708139468999,-500.0,0.00050684,60]
[314274928,1708139469010,-1935.87,0.00050684,60]
[314274929,1708139469019,-313.90864043,0.00050684,60]
[314274930,1708139469029,-554.4,0.00050684,60]
[314274931,1708139469039,-500.0,0.00050684,60]
[314274932,1708139469049,-972.28,0.00050684,60]
[314274933,1708139469058,-577.36,0.00050684,60]
[314274934,1708139469067,-500.0,0.00050684,60]
[314274935,1708139469077,-1034.46,0.00050684,60]
[314274936,1708139469086,-500.0,0.00050684,60]
[314274937,1708139469097,-500.0,0.00050684,60]
[314274938,1708139469107,-500.0,0.00050684,60]
[314274939,1708139469117,-261.19416772,0.00050684,60]
[314274940,1708139469127,-692.92,0.00050684,60]
[314274941,1708139469136,-718.43,0.00050684,60]
[314274942,1708139469146,-879.44,0.00050684,60]
[314274943,1708139469155,-500.0,0.00050684,60]
[314274944,1708139469165,-500.0,0.00050684,60]
[314274945,1708139469175,-5123.64,0.00050684,60]
[314274946,1708139469184,-500.0,0.00050684,60]
[314274947,1708139469193,-500.0,0.00050684,60]
[314274948,1708139469202,-1145.97,0.00050684,60]
[314274949,1708139469211,-500.0,0.00050684,60]
[314274950,1708139469220,-12479.19,0.00050684,60]
[314274951,1708139469229,-500.0,0.00050684,60]
[314274952,1708139469239,-738.56,0.00050684,60]
[314274953,1708139469248,-500.0,0.00050684,60]
[314274954,1708139469257,-500.0,0.00050684,60]
[314274955,1708139469267,-548.51,0.00050684,60]
[314274956,1708139469276,-17515.0,0.000507,120]
[314274957,1708139469286,-432.0,0.00050816,30]
[314274958,1708139469296,-301.97,0.00050822,30]
[314274959,1708139469306,-319.62,0.000509,2]
[314274960,1708139469315,-206.0,0.00050945,38]
[314274961,1708139469324,-739.89,0.00050958,60]
[314274962,1708139469333,-500.0,0.00050958,60]
[314274963,1708139469343,-500.0,0.00050958,60]
[314274964,1708139469352,-500.0,0.00050958,60]
[314274965,1708139469362,-500.0,0.00050958,2]
[314274966,1708139469371,-500.0,0.00050958,60]
[314274967,1708139469381,-500.0,0.00050958,60]
[314274968,1708139469390,-500.0,0.00050958,2]
[314274969,1708139469399,-500.0,0.00050958,60]
[314274970,1708139469408,-615.82,0.00050958,60]
[314274971,1708139469418,-500.0,0.00050958,60]
[314274972,1708139469427,-500.0,0.00050958,60]
[314274973,1708139469437,-500.0,0.00050958,2]
[314274974,1708139469447,-500.0,0.00050958,60]
[314274975,1708139469457,-582.86141598,0.00050958,60]
[314274976,1708139469466,-521.38,0.00050958,2]
[314274977,1708139469476,-526.92,0.00050958,60]
[314274978,1708139469486,-415.42552223,0.00050958,60]
[314274979,1708139469496,-500.0,0.00050958,60]
[314274980,1708139469506,-473.2,0.00050958,60]
[314274981,1708139469516,-500.0,0.00050958,60]
[314274982,1708139469525,-500.0,0.00050958,60]
[314274983,1708139469537,-1162.21,0.00050958,60]
[314274984,1708139469546,-500.0,0.00050958,60]
[314274985,1708139469557,-500.0,0.00050958,60]
[314274986,1708139469567,-500.0,0.00050958,2]
[314274987,1708139469576,-150.0,0.00050958,60]
[314274988,1708139469586,-500.0,0.00050958,60]
[314274989,1708139469596,-500.0,0.00050958,60]
[314274990,1708139469605,-1393.94,0.00050958,60]
[314274991,1708139469614,-500.0,0.00050958,60]
[314274992,1708139469624,-4252.1375,0.00050958,7]
[314274993,1708139469633,-500.0,0.00050958,60]
[314274994,1708139469643,-500.0,0.00050958,2]
[314274995,1708139469653,-500.0,0.00050958,60]
[314274996,1708139469662,-500.0,0.00050958,60]
[314274997,1708139469672,-500.0,0.00050958,60]
[314274998,1708139469682,-1028.76,0.00050958,2]
[314274999,1708139469691,-500.0,0.00050958,7]
[314275000,1708139469701,-500.0,0.00050958,60]
[314275001,1708139469710,-500.0,0.00050958,60]
[314275002,1708139469719,-500.0,0.00050958,60]
[314275003,1708139469729,-611.77321654,0.00050958,60]
[314275004,1708139469738,-500.0,0.00050958,60]
[314275005,1708139469747,-500.0,0.00050958,60]
[314275006,1708139469757,-657.81,0.00050958,60]
[314275007,1708139469766,-500.0,0.00050958,60]
[314275008,1708139469776,-500.0,0.00050958,60]
[314275009,1708139469788,-500.0,0.00050958,60]
[314275010,1708139469798,-523.96,0.00050958,60]
[314275011,1708139469807,-500.0,0.00050958,60]
[314275012,1708139469816,-500.0,0.00050958,60]
[314275013,1708139469826,-500.0,0.00050958,60]
[314275014,1708139469835,-500.0,0.00050958,60]
[314275015,1708139469843,-500.0,0.00050958,60]
[314275016,1708139469852,-500.0,0.00050958,60]
[314275017,1708139469862,-500.0,0.00050958,60]
[314275018,1708139469871,-500.0,0.00050958,60]
[314275019,1708139469880,-500.0,0.00050958,60]
[314275020,1708139469889,-500.0,0.00050958,60]
[314275021,1708139469899,-854.01,0.00050958,60]
[314275022,1708139469908,-500.0,0.00050958,60]
[314275023,1708139469917,-500.0,0.00050958,60]
[314275024,1708139469926,-1495.02,0.00050958,60]
[314275025,1708139469939,-500.0,0.00050958,60]
[314275026,1708139469949,-500.0,0.00050958,60]
[314275027,1708139469958,-500.0,0.00050958,60]
[314275028,1708139469968,-1165.59,0.00050958,60]
[314275029,1708139469978,-500.0,0.00050958,60]
[314275030,1708139470066,-500.0,0.00050958,60]
[314275031,1708139470076,-636.17,0.00050958,60]
[314275032,1708139470086,-500.0,0.00050958,60]
[314275033,1708139470096,-893.76,0.00050958,60]
[314275034,1708139470105,-622.67,0.00050958,60]
[314275035,1708139470116,-3136.01,0.00050958,60]
[314275036,1708139470125,-500.0,0.00050958,60]
[314275037,1708139470135,-5024.34,0.00050958,60]
[314275038,1708139470145,-472.46893338,0.00050958,60]
[314275039,1708139470154,-500.0,0.00050958,60]
[314275040,1708139470163,-502.24,0.00050958,60]
[314275041,1708139470173,-569.8,0.00050958,60]
[314275042,1708139470183,-873.0,0.00050958,60]
[314275043,1708139470192,-500.0,0.00050958,60]
[314275044,1708139470202,-556.89,0.00050958,60]
[314275045,1708139470212,-500.0,0.00050958,60]
[314275046,1708139470221,-1593.36,0.00050958,60]
[314275047,1708139470230,-3220.88,0.00050958,60]
[314275048,1708139470240,-195.90240329,0.00050958,60]
[314275049,1708139470248,-519.51,0.00050958,60]
[314275050,1708139470258,-500.0,0.00050958,60]
[314275051,1708139470267,-500.0,0.00050958,60]
[314275052,1708139470277,-500.0,0.00050958,60]
[314275053,1708139470287,-937.4,0.00050958,60]
[314275054,1708139470296,-577.85,0.00050958,60]
[314275055,1708139470305,-1846.34,0.00050958,60]
[314275056,1708139470315,-500.0,0.00050958,60]
[314275057,1708139470324,-500.0,0.00050958,60]
[314275058,1708139470333,-1210.8,0.00050958,14]
[314275059,1708139470342,-500.0,0.00050958,60]
[314275060,1708139470351,-271.01725154,0.00050958,60]
[314275061,1708139470361,-1111.25,0.00050958,60]
[314275062,1708139470371,-783.66,0.00050958,60]
[314275063,1708139470380,-567.1,0.00050958,60]
[314275064,1708139470390,-500.0,0.00050958,60]
[314275065,1708139470399,-523.09,0.00050958,60]
[314275066,1708139470409,-500.0,0.00050958,60]
[314275067,1708139470418,-1634.88,0.00050958,60]
[314275068,1708139470428,-500.0,0.00050958,60]
[314275069,1708139470437,-500.0,0.00050958,60]
[314275070,1708139470447,-500.0,0.00050958,60]
[314275071,1708139470456,-500.0,0.00050958,60]
[314275072,1708139470466,-500.0,0.00050958,60]
[314275073,1708139470474,-500.0,0.00050958,60]
[314275074,1708139470484,-500.0,0.00050958,60]
[314275075,1708139470494,-203.90726346,0.00050958,60]
[314275076,1708139470503,-500.0,0.00050958,60]
[314275077,1708139470512,-500.0,0.00050958,60]
[314275078,1708139470521,-2129.66,0.00050958,60]
[314275079,1708139470532,-500.0,0.00050958,60]
[314275080,1708139470542,-500.0,0.00050958,60]
[314275081,1708139470551,-1935.87,0.00050958,60]
[314275082,1708139470560,-554.4,0.00050958,60]
[314275083,1708139470569,-500.0,0.00050958,60]
[314275084,1708139470578,-972.28,0.00050958,60]
[314275085,1708139470587,-577.36,0.00050958,60]
[314275086,1708139470597,-500.0,0.00050958,60]
[314275087,1708139470606,-1034.46,0.00050958,60]
[314275088,1708139470615,-500.0,0.00050958,60]
[314275089,1708139470625,-500.0,0.00050958,60]
[314275090,1708139470634,-500.0,0.00050958,60]
[314275091,1708139470644,-692.92,0.00050958,60]
[314275092,1708139470653,-718.43,0.00050958,60]
[314275093,1708139470663,-879.44,0.00050958,60]
[314275094,1708139470672,-500.0,0.00050958,60]
[314275095,1708139470682,-500.0,0.00050958,60]
[314275096,1708139470691,-5123.64,0.00050958,60]
[314275097,1708139470700,-500.0,0.00050958,60]
[314275098,1708139470709,-500.0,0.00050958,60]
[314275099,1708139470719,-1145.97,0.00050958,60]
[314275100,1708139470730,-500.0,0.00050958,60]
[314275101,1708139470739,-12479.19,0.00050958,60]
[314275102,1708139470749,-500.0,0.00050958,60]
[314275103,1708139470760,-738.56,0.00050958,60]
[314275104,1708139470770,-500.0,0.00050958,60]
[314275105,1708139470780,-500.0,0.00050958,60]
[314275106,1708139470791,-548.51,0.00050958,60]
[314275107,1708139470800,-200.0,0.00050987,72]
[314275108,1708139470809,-200.0,0.00050987,70]
[314275109,1708139470818,-10000.0,0.00051,90]
[314275110,1708139470827,-313.95855664,0.00051,51]
[314275111,1708139470836,-5000.0,0.00051,32]
[314275112,1708139470845,-1242.0,0.00051,30]
[314275113,1708139470854,-1218.62642349,0.00051,4]
[314275114,1708139470864,-484491.4358413,0.00051,90]
[314275115,1708139470873,-207.0,0.00051,8]
[314275116,1708139470882,-196.409247,0.00051021,30]
[314275117,1708139470891,-150.0,0.00051037,120]
[314275118,1708139470901,-150.0,0.00051037,2]
[314275119,1708139470910,-150.0,0.00051037,120]
[314275120,1708139470920,-953.0,0.00051037,120]
[314275121,1708139470931,-1255.0,0.00051037,120]
[314275122,1708139470943,-1231.0,0.00051037,120]
[314275123,1708139470954,-1949.0,0.00051037,120]
[314275124,1708139470964,-343.0,0.00051037,120]
[314275125,1708139470973,-2871.0,0.00051037,120]
[314275126,1708139470983,-152.0,0.00051098,4]
[314275127,1708139470993,-151.021788,0.00051148,53]
[314275128,1708139471002,-181.0,0.00051159,60]
[314275129,1708139471012,-1000.0,0.000512,2]
[314275130,1708139471022,-739.89,0.00051232,60]
[314275131,1708139471032,-531.64082434,0.00051232,60]
[314275132,1708139471043,-500.0,0.00051232,60]
[314275133,1708139471053,-500.0,0.00051232,60]
[314275134,1708139471063,-500.0,0.00051232,2]
[314275135,1708139471072,-500.0,0.00051232,60]
[314275136,1708139471081,-500.0,0.00051232,60]
[314275137,1708139471091,-500.0,0.00051232,2]
[314275138,1708139471100,-500.0,0.00051232,60]
[314275139,1708139471109,-615.82,0.00051232,60]
[314275140,1708139471118,-500.0,0.00051232,60]
[314275141,1708139471127,-500.0,0.00051232,60]
[314275142,1708139471136,-500.0,0.00051232,2]
[314275143,1708139471146,-500.0,0.00051232,60]
[314275144,1708139471155,-521.38,0.00051232,2]
[314275145,1708139471165,-526.92,0.00051232,60]
[314275146,1708139471173,-500.0,0.00051232,60]
[314275147,1708139471182,-434.13,0.00051232,60]
[314275148,1708139471191,-500.0,0.00051232,60]
[314275149,1708139471200,-1162.21,0.00051232,60]
[314275150,1708139471210,-200.5,0.00051232,60]
[314275151,1708139471219,-500.0,0.00051232,60]
[314275152,1708139471227,-500.0,0.00051232,2]
[314275153,1708139471236,-178.31418076,0.00051232,60]
[314275154,1708139471245,-500.0,0.00051232,60]
[314275155,1708139471254,-500.0,0.00051232,60]
[314275156,1708139471329,-1393.94,0.00051232,60]
[314275157,1708139471344,-500.0,0.00051232,60]
[314275158,1708139471353,-500.0,0.00051232,60]
[314275159,1708139471362,-500.0,0.00051232,2]
[314275160,1708139471370,-500.0,0.00051232,60]
[314275161,1708139471379,-500.0,0.00051232,60]
[314275162,1708139471388,-500.0,0.00051232,60]
[314275163,1708139471397,-1028.76,0.00051232,2]
[314275164,1708139471406,-500.0,0.00051232,60]
[314275165,1708139471415,-500.0,0.00051232,7]
[314275166,1708139471423,-500.0,0.00051232,60]
[314275167,1708139471433,-500.0,0.00051232,60]
[314275168,1708139471442,-390.57033283,0.00051232,60]
[314275169,1708139471451,-500.0,0.00051232,60]
[314275170,1708139471460,-657.81,0.00051232,60]
[314275171,1708139471470,-500.0,0.00051232,60]
[314275172,1708139471479,-500.0,0.00051232,60]
[314275173,1708139471488,-500.0,0.00051232,60]
[314275174,1708139471497,-523.96,0.00051232,60]
[314275175,1708139471506,-500.0,0.00051232,60]
[314275176,1708139471515,-500.0,0.00051232,60]
[314275177,1708139471524,-500.0,0.00051232,60]
[314275178,1708139471533,-500.0,0.00051232,60]
[314275179,1708139471542,-500.0,0.00051232,60]
[314275180,1708139471550,-500.0,0.00051232,60]
[314275181,1708139471559,-500.0,0.00051232,60]
[314275182,1708139471568,-500.0,0.00051232,60]
[314275183,1708139471578,-500.0,0.00051232,60]
[314275184,1708139471586,-500.0,0.00051232,60]
[314275185,1708139471596,-854.01,0.00051232,60]
[314275186,1708139471606,-500.0,0.00051232,60]
[314275187,1708139471616,-500.0,0.00051232,60]
[314275188,1708139471625,-1495.02,0.00051232,60]
[314275189,1708139471635,-500.0,0.00051232,60]
[314275190,1708139471645,-500.0,0.00051232,60]
[314275191,1708139471654,-349.17,0.00051232,60]
[314275192,1708139471663,-1165.59,0.00051232,60]
[314275193,1708139471673,-500.0,0.00051232,60]
[314275194,1708139471683,-500.0,0.00051232,60]
[314275195,1708139471692,-636.17,0.00051232,60]
[314275196,1708139471701,-500.0,0.00051232,60]
[314275197,1708139471710,-893.76,0.00051232,60]
[314275198,1708139471719,-622.67,0.00051232,60]
[314275199,1708139471729,-3136.01,0.00051232,60]
[314275200,1708139471739,-500.0,0.00051232,60]
[314275201,1708139471748,-5024.34,0.00051232,60]
[314275202,1708139471757,-500.0,0.00051232,60]
[314275203,1708139471767,-502.24,0.00051232,60]
[314275204,1708139471776,-569.8,0.00051232,60]
[314275205,1708139471786,-500.0,0.00051232,60]
[314275206,1708139471795,-873.0,0.00051232,60]
[314275207,1708139471804,-556.89,0.00051232,60]
[314275208,1708139471814,-500.0,0.00051232,60]
[314275209,1708139471822,-1593.36,0.00051232,60]
[314275210,1708139471832,-3220.88,0.00051232,60]
[314275211,1708139471841,-519.51,0.00051232,60]
[314275212,1708139471851,-500.0,0.00051232,60]
[314275213,1708139471860,-500.0,0.00051232,60]
[314275214,1708139471875,-937.4,0.00051232,60]
[314275215,1708139471894,-500.0,0.00051232,60]
[314275216,1708139471909,-577.85,0.00051232,60]
[314275217,1708139471927,-1846.34,0.00051232,60]
[314275218,1708139471943,-500.0,0.00051232,60]
[314275219,1708139471961,-500.0,0.00051232,60]
[314275220,1708139471978,-1210.8,0.00051232,14]
[314275221,1708139471994,-500.0,0.00051232,60]
[314275222,1708139472014,-1111.25,0.00051232,60]
[314275223,1708139472030,-783.66,0.00051232,60]
[314275224,1708139472048,-567.1,0.00051232,60]
[314275225,1708139472069,-500.0,0.00051232,60]
[314275226,1708139472081,-523.09,0.00051232,60]
[314275227,1708139472097,-500.0,0.00051232,60]
[314275228,1708139472113,-1634.88,0.00051232,60]
[314275229,1708139472128,-408.56987597,0.00051232,60]
[314275230,1708139472143,-500.0,0.00051232,60]
[314275231,1708139472157,-500.0,0.00051232,60]
[314275232,1708139472172,-500.0,0.00051232,60]
[314275233,1708139472187,-500.0,0.00051232,60]
[314275234,1708139472201,-500.0,0.00051232,60]
[314275235,1708139472215,-500.0,0.00051232,60]
[314275236,1708139472230,-284.85464846,0.00051232,60]
[314275237,1708139472245,-500.0,0.00051232,60]
[314275238,1708139472260,-2129.66,0.00051232,60]
[314275239,1708139472275,-500.0,0.00051232,60]
[314275240,1708139472288,-500.0,0.00051232,60]
[314275241,1708139472303,-1935.87,0.00051232,60]
[314275242,1708139472317,-554.4,0.00051232,60]
[314275243,1708139472331,-500.0,0.00051232,60]
[314275244,1708139472345,-972.28,0.00051232,60]
[314275245,1708139472360,-577.36,0.00051232,60]
[314275246,1708139472375,-468.33368887,0.00051232,60]
[314275247,1708139472389,-1034.46,0.00051232,60]